[Event "Championnat du monde jeunes U10F"]
[Date "2024.11.16"]
[White "Ahmadli, Mehriban"]
[Black "Samhita Pungavanam"]
[WhiteElo "1624"]
[BlackElo "1752"]
[Round "2.6"]
[Result "1-0"]
[TimeControl "5400+30"]

1. e4 {[%clk 1:30:51]} 1... c5 {[%clk 1:29:32]} 2. Nf3 {[%clk 1:31:12]} 2... Nc6
{[%clk 1:29:12]} 3. d4 {[%clk 1:31:33]} 3... cxd4 {[%clk 1:29:20]} 4. Nxd4
{[%clk 1:32:00]} 4... Nf6 {[%clk 1:29:37]} 5. Nc3 {[%clk 1:32:19]} 5... d6
{[%clk 1:27:58]} 6. f3 {[%clk 1:29:01]} 6... e6 {[%clk 1:22:52]} 7. Be3 {[%clk
1:25:39]} 7... Be7 {[%clk 1:16:56]} 8. Qd2 {[%clk 1:24:32]} 8... Bd7 {[%clk
1:06:41]} 9. Ndb5 {[%clk 1:22:58]} 9... Nb4 {[%clk 0:49:32]} 10. a3 {[%clk
1:20:25]} 10... Bxb5 {[%clk 0:43:39]} 11. Bxb5+ {[%clk 1:09:53]} 11... Nc6
{[%clk 0:43:57]} 12. O-O {[%clk 1:09:31]} 12... O-O {[%clk 0:39:28]} 13. Rad1
{[%clk 1:08:13]} 13... a6 {[%clk 0:36:48]} 14. Bc4 {[%clk 1:05:53]} 14... b5
{[%clk 0:31:53]} 15. Ba2 {[%clk 0:59:53]} 15... Qc7 {[%clk 0:27:20]} 16. Qf2
{[%clk 0:58:40]} 16... Ne5 {[%clk 0:25:07]} 17. Qg3 {[%clk 0:51:36]} 17... Kh8
{[%clk 0:19:00]} 18. Rd4 {[%clk 0:44:41]} 18... Nc4 {[%clk 0:09:28]} 19. Bxc4
{[%clk 0:41:55]} 19... bxc4 {[%clk 0:09:51]} 20. Qf2 {[%clk 0:36:55]} 20... Rab8
{[%clk 0:09:38]} 21. Nd1 {[%clk 0:31:27]} 21... d5 {[%clk 0:07:12]} 22. e5
{[%clk 0:22:32]} 22... Nd7 {[%clk 0:05:44]} 23. f4 {[%clk 0:19:58]} 23... Bc5
{[%clk 0:05:44]} 24. Rd2 {[%clk 0:20:01]} 24... Bxe3 {[%clk 0:05:28]} 25. Qxe3
{[%clk 0:18:56]} 25... Qc5 {[%clk 0:05:34]} 26. Rd4 {[%clk 0:18:30]} 26... f6
{[%clk 0:04:12]} 27. exf6 {[%clk 0:16:32]} 27... Nxf6 {[%clk 0:04:30]} 28. c3
{[%clk 0:16:31]} 28... Qb6 {[%clk 0:03:27]} 29. Qe5 {[%clk 0:12:14]} 29... Ne4
{[%clk 0:02:32]} 30. f5 {[%clk 0:11:28]} 30... Nd2 {[%clk 0:00:39]} 31. f6
{[%clk 0:09:14]} 31... Kg8 {[%clk 0:00:37]} 32. Qg5 {[%clk 0:09:25]} 32... Qa7
{[%clk 0:00:53]} 33. f7+ {[%clk 0:03:18]} 33... Kh8 {[%clk 0:00:39]} 34. Rf4
{[%clk 0:01:09]} 34... Ne4 {[%clk 0:00:50]} 35. Qe5 {[%clk 0:00:53]} 35... Qe7
{[%clk 0:00:36]} 36. Rxd5 {[%clk 0:00:44]} 36... Nf6 {[%clk 0:00:49]} 37. Rc5
{[%clk 0:00:34]} 37... Qxf7 38. Rc7 {[%clk 0:00:54]} 38... Qg6 {[%clk 0:00:57]}
39. Rf3 {[%clk 0:00:33]} 39... Ng4 {[%clk 0:00:51]} 40. Rxf8+ {[%clk 0:00:36]}
40... Rxf8 {[%clk 0:01:20]} 41. Qe2 {[%clk 0:00:40]} 41... Qd3 {[%clk 0:00:34]}
42. Qxd3 {[%clk 0:00:34]} 42... cxd3 {[%clk 0:01:03]} 43. Rd7 {[%clk 0:00:51]}
43... Ne5 {[%clk 0:01:08]} 44. Rd4 {[%clk 0:01:10]} 44... h6 {[%clk 0:00:34]}
45. Nf2 {[%clk 0:01:17]} 45... Rb8 {[%clk 0:00:45]} 46. b4 {[%clk 0:01:14]}
46... Rc8 {[%clk 0:00:39]} 47. Nxd3 {[%clk 0:01:30]} 47... Nxd3 {[%clk 0:00:54]}
48. Rxd3 {[%clk 0:01:59]} 48... Rc6 {[%clk 0:01:15]} 49. Kf2 {[%clk 0:02:17]}
49... Kh7 {[%clk 0:01:17]} 50. Ke3 {[%clk 0:02:33]} 50... Kg6 {[%clk 0:01:41]}
51. a4 {[%clk 0:02:45]} 51... Kf5 {[%clk 0:01:43]} 52. Kd4 {[%clk 0:01:38]}
52... e5+ {[%clk 0:01:20]} 53. Kd5 {[%clk 0:01:52]} 53... e4 {[%clk 0:01:28]}
54. Re3 {[%clk 0:02:09]} 54... Rc8 {[%clk 0:01:08]} 55. g4+ {[%clk 0:01:55]}
55... Kxg4 {[%clk 0:00:44]} 56. Kxe4 {[%clk 0:01:36]} 56... g5 {[%clk 0:00:42]}
57. Rg3+ {[%clk 0:01:52]} 57... Kh4 {[%clk 0:00:50]} 58. Kd4 {[%clk 0:01:49]}
58... Rd8+ {[%clk 0:01:05]} 59. Ke3 {[%clk 0:01:18]} 59... Rb8 {[%clk 0:00:59]}
60. Kf3 {[%clk 0:00:50]} 60... Rf8+ {[%clk 0:01:02]} 61. Kg2 {[%clk 0:00:42]}
61... g4 {[%clk 0:00:52]} 62. h3 {[%clk 0:00:37]} 62... h5 {[%clk 0:01:03]} 63.
hxg4 {[%clk 0:00:58]} 63... hxg4 {[%clk 0:01:32]} 64. Rd3 {[%clk 0:01:15]} 64...
Rc8 {[%clk 0:00:57]} 65. Re3 {[%clk 0:01:08]} 65... Rd8 {[%clk 0:01:01]} 66. Re2
{[%clk 0:00:53]} 66... Rd3 {[%clk 0:01:06]} 67. Rc2 {[%clk 0:01:00]} 67... Rg3+
{[%clk 0:01:30]} 68. Kh1 {[%clk 0:01:14]} 68... Rd3 {[%clk 0:01:05]} 69. Kh2
{[%clk 0:00:38]} 69... Rh3+ {[%clk 0:01:03]} 70. Kg1 {[%clk 0:00:36]} 70... Kg3
{[%clk 0:00:38]} 71. c4 {[%clk 0:00:39]} 71... Rh8 {[%clk 0:00:53]} 72. c5
{[%clk 0:00:51]} 72... Rd8 {[%clk 0:01:02]} 73. Rc1 {[%clk 0:00:41]} 73... Rd2
{[%clk 0:00:36]} 74. Rc3+ {[%clk 0:00:39]} 74... Kh4 {[%clk 0:00:55]} 75. c6
{[%clk 0:00:45]} 75... Rd1+ {[%clk 0:01:11]} 76. Kf2 {[%clk 0:01:02]} 76... Rd2+
{[%clk 0:01:05]} 77. Ke1 {[%clk 0:01:06]} 77... Rd8 {[%clk 0:01:18]} 78. c7
{[%clk 0:01:18]} 78... Rc8 {[%clk 0:00:58]} 79. b5 {[%clk 0:01:35]} 79... axb5
{[%clk 0:00:40]} 80. axb5 {[%clk 0:01:59]} 80... g3 {[%clk 0:00:59]} 81. b6
{[%clk 0:02:04]} 81... g2 {[%clk 0:00:34]} 82. Kf2 {[%clk 0:02:10]} 82... Rg8
{[%clk 0:00:36]} 83. Kg1 {[%clk 0:02:24]} 1-0

[Variant "Standard"]
[Site "Europe Echecs"]

[Event "Championnat du monde jeunes U10F"]
[Date "2024.11.16"]
[White "Anistoroaei, Maria"]
[Black "Milojevic, Dunja"]
[WhiteElo "1715"]
[BlackElo "1610"]
[Round "2.9"]
[Result "1-0"]
[TimeControl "5400+30"]

1. d4 {[%clk 1:30:51]} 1... Nf6 {[%clk 1:30:55]} 2. Bf4 {[%clk 1:31:09]} 2... e6
{[%clk 1:31:16]} 3. e3 {[%clk 1:31:21]} 3... d5 {[%clk 1:31:42]} 4. Nf3 {[%clk
1:31:20]} 4... Bd6 {[%clk 1:32:00]} 5. Ne5 {[%clk 1:30:59]} 5... O-O {[%clk
1:32:13]} 6. Bd3 {[%clk 1:30:17]} 6... c5 {[%clk 1:32:34]} 7. c3 {[%clk
1:30:37]} 7... Qc7 {[%clk 1:32:57]} 8. Nd2 {[%clk 1:30:32]} 8... b6 {[%clk
1:32:59]} 9. O-O {[%clk 1:25:53]} 9... Nc6 {[%clk 1:33:11]} 10. Ndf3 {[%clk
1:25:16]} 10... h6 {[%clk 1:32:15]} 11. h3 {[%clk 1:18:57]} 11... Nd7 {[%clk
1:32:27]} 12. Nxc6 {[%clk 1:17:23]} 12... Qxc6 {[%clk 1:32:46]} 13. Bxd6 {[%clk
1:17:30]} 13... Qxd6 {[%clk 1:33:09]} 14. a4 {[%clk 1:17:25]} 14... a5 {[%clk
1:32:34]} 15. Qe2 {[%clk 1:16:52]} 15... Bb7 {[%clk 1:32:48]} 16. Rfd1 {[%clk
1:15:26]} 16... Rfe8 {[%clk 1:31:39]} 17. e4 {[%clk 1:08:56]} 17... e5 {[%clk
1:30:29]} 18. dxe5 {[%clk 1:03:09]} 18... Nxe5 {[%clk 1:30:17]} 19. Bb5 {[%clk
1:02:27]} 19... Nxf3+ {[%clk 1:20:33]} 20. Qxf3 {[%clk 0:59:23]} 20... Re5
{[%clk 1:18:13]} 21. Rd2 {[%clk 0:40:13]} 21... d4 {[%clk 1:16:52]} 22. Re1
{[%clk 0:39:11]} 22... f5 {[%clk 1:15:48]} 23. cxd4 {[%clk 0:38:19]} 23... Rxe4
{[%clk 1:07:25]} 24. Rxe4 {[%clk 0:36:17]} 24... Bxe4 {[%clk 1:07:43]} 25. Qb3+
{[%clk 0:35:18]} 25... Kh8 {[%clk 1:08:03]} 26. Qc3 {[%clk 0:34:13]} 26... Rd8
{[%clk 1:08:11]} 27. f3 {[%clk 0:32:50]} 27... cxd4 {[%clk 1:05:38]} 28. Qc1
{[%clk 0:30:23]} 28... Bb7 {[%clk 1:05:58]} 29. Rd3 {[%clk 0:30:25]} 29... f4
{[%clk 1:04:00]} 30. Qd2 {[%clk 0:30:08]} 30... Bc8 {[%clk 1:04:16]} 31. Qe1
{[%clk 0:29:11]} 31... Bf5 {[%clk 1:04:33]} 32. Rd2 {[%clk 0:29:01]} 32... d3
{[%clk 1:04:31]} 33. Kh2 {[%clk 0:29:14]} 33... Qd4 {[%clk 1:03:35]} 34. Qd1
{[%clk 0:28:27]} 34... Rc8 {[%clk 1:02:20]} 35. Ba6 {[%clk 0:27:02]} 35... Rc7
{[%clk 1:00:56]} 36. Bb5 {[%clk 0:26:44]} 36... Qe3 {[%clk 0:58:31]} 37. Rxd3
{[%clk 0:23:15]} 37... Bxd3 {[%clk 0:58:28]} 38. Qxd3 {[%clk 0:23:33]} 38...
Qxd3 {[%clk 0:58:54]} 39. Bxd3 {[%clk 0:23:51]} 39... Rc1 {[%clk 0:59:09]} 40.
h4 {[%clk 0:22:10]} 40... Rd1 {[%clk 0:59:02]} 41. Be4 {[%clk 0:22:11]} 41... g5
{[%clk 0:58:56]} 42. hxg5 {[%clk 0:22:04]} 42... hxg5 {[%clk 0:59:21]} 43. Kh3
{[%clk 0:21:37]} 43... Kg7 {[%clk 0:59:46]} 44. g3 {[%clk 0:21:26]} 44... Kf6
{[%clk 0:59:14]} 45. b3 {[%clk 0:20:57]} 45... Rg1 {[%clk 0:58:48]} 46. gxf4
{[%clk 0:20:58]} 46... gxf4 {[%clk 0:59:13]} 47. Kh4 {[%clk 0:20:16]} 47... Ke5
{[%clk 0:59:34]} 48. Kh3 {[%clk 0:19:45]} 48... Re1 {[%clk 0:59:55]} 49. Bc6
{[%clk 0:18:25]} 49... Re3 {[%clk 0:59:46]} 50. Kg4 {[%clk 0:18:25]} 50... Rxb3
{[%clk 1:00:10]} 51. Kg5 {[%clk 0:18:12]} 51... Rb4 {[%clk 1:00:32]} 52. Be8
{[%clk 0:17:55]} 52... b5 {[%clk 0:58:36]} 53. Bxb5 {[%clk 0:14:19]} 53... Rxb5
{[%clk 0:59:02]} 54. axb5 {[%clk 0:14:36]} 54... a4 {[%clk 0:59:30]} 55. b6
{[%clk 0:14:52]} 55... Kd6 {[%clk 0:59:58]} 56. Kxf4 {[%clk 0:13:55]} 56... a3
{[%clk 1:00:22]} 57. Ke4 1-0

[Variant "Standard"]
[Site "Europe Echecs"]

[Event "Championnat du monde jeunes U10F"]
[Date "2024.11.16"]
[White "Sobirova, Mumtozbegim"]
[Black "Sholpanbek, Zhansaya"]
[WhiteElo "1476"]
[BlackElo "1657"]
[Round "2.17"]
[Result "0-1"]
[TimeControl "5400+30"]

1. e4 {[%clk 1:30:56]} 1... e5 {[%clk 1:30:39]} 2. Nf3 {[%clk 1:31:14]} 2... Nc6
{[%clk 1:30:54]} 3. Bc4 {[%clk 1:31:29]} 3... Bc5 {[%clk 1:31:10]} 4. c3 {[%clk
1:31:44]} 4... Nf6 {[%clk 1:31:09]} 5. d3 {[%clk 1:31:54]} 5... O-O {[%clk
1:31:12]} 6. Bb3 d5 {[%clk 1:30:42]} 7. Qe2 {[%clk 1:31:50]} 7... a5 {[%clk
1:30:04]} 8. Bg5 {[%clk 1:30:04]} 8... d4 9. Nbd2 h6 {[%clk 1:23:19]} 10. Bh4 a4
{[%clk 1:21:34]} 11. Bd1 {[%clk 1:19:13]} 11... a3 {[%clk 1:21:14]} 12. Nb3
{[%clk 1:17:17]} 12... axb2 {[%clk 1:20:50]} 13. Qxb2 {[%clk 1:16:23]} 13...
dxc3 {[%clk 1:21:13]} 14. Qe2 Ba3 {[%clk 1:06:11]} 15. Qb2 {[%clk 1:16:23]}
15... Bc5 16. Qe2 {[%clk 1:19:13]} 16... Ba3 {[%clk 1:21:14]} 17. Qb2 {[%clk
1:16:23]} 17... Bc5 18. Qe2 {[%clk 1:11:00]} 18... Ba3 {[%clk 1:06:11]} 19. Qb2
{[%clk 1:16:23]} 19... Bc5 20. Qe2 {[%clk 1:11:00]} 20... Ba3 21. Rb1 {[%clk
1:16:20]} 21... Bc5 22. Ra1 {[%clk 1:11:00]} 22... Ba3 23. Rb1 {[%clk 1:16:20]}
23... Bc5 24. Ra1 {[%clk 1:11:00]} 24... Ba3 25. Rb1 Bg4 {[%clk 1:03:12]} 26. h3
{[%clk 1:07:29]} 26... Bxf3 {[%clk 1:00:18]} 27. gxf3 {[%clk 1:07:16]} 27... Nb4
{[%clk 0:56:10]} 28. Bxf6 {[%clk 0:56:41]} 28... Nxd3+ {[%clk 0:52:35]} 29. Kf1
{[%clk 0:56:50]} 29... Nb4 30. Ke1 Nd3+ {[%clk 0:52:35]} 31. Kf1 {[%clk
0:56:50]} 31... gxf6 {[%clk 0:52:49]} 32. Qe3 {[%clk 0:56:07]} 32... Nf4 {[%clk
0:52:43]} 33. Qe2 Nd3 {[%clk 0:52:49]} 34. Qe3 {[%clk 0:56:07]} 34... Nf4 35.
Qxc3 {[%clk 0:55:02]} 35... Qe7 {[%clk 0:51:01]} 36. Nd2 {[%clk 0:53:40]} 36...
c5 {[%clk 0:50:59]} 37. Nc4 {[%clk 0:53:08]} 37... Bb4 {[%clk 0:51:19]} 38. Qc2
{[%clk 0:52:29]} 38... Ba3 {[%clk 0:50:59]} 39. Qc3 {[%clk 0:53:08]} 39... Bb4
{[%clk 0:51:19]} 40. Qc2 {[%clk 0:52:29]} 40... Rfd8 {[%clk 0:45:08]} 41. Qc3
{[%clk 0:53:08]} 41... Rf8 {[%clk 0:51:19]} 42. Qc2 {[%clk 0:52:29]} 42... Rfd8
{[%clk 0:45:08]} 43. Qc3 {[%clk 0:53:08]} 43... Rf8 {[%clk 0:51:19]} 44. Qc2
{[%clk 0:52:29]} 44... Rfd8 {[%clk 0:52:35]} 45. Qc3 {[%clk 0:53:08]} 45... Rf8
{[%clk 0:51:19]} 46. Qc2 {[%clk 0:52:29]} 46... Rfd8 {[%clk 0:52:35]} 47. Qc3
{[%clk 0:53:08]} 47... Rf8 {[%clk 0:51:19]} 48. Qc2 {[%clk 0:52:29]} 48... Rfd8
{[%clk 0:52:35]} 49. Qc3 {[%clk 0:53:08]} 49... Rf8 {[%clk 0:51:19]} 50. Qc2
{[%clk 0:52:29]} 50... Rfd8 {[%clk 0:52:35]} 51. Qc3 {[%clk 0:53:08]} 51... Rf8
{[%clk 0:51:19]} 52. Qc2 {[%clk 0:52:29]} 52... Rfd8 53. a3 {[%clk 0:37:17]}
53... Bxa3 {[%clk 0:43:10]} 54. Ra1 {[%clk 0:36:45]} 54... Qd7 {[%clk 0:39:26]}
55. Rb1 {[%clk 0:37:17]} 55... Qe7 {[%clk 0:43:10]} 56. Ra1 {[%clk 0:36:45]}
56... Qd7 {[%clk 0:51:19]} 57. Rb1 {[%clk 0:37:17]} 57... Qe7 {[%clk 0:43:10]}
58. Ra1 {[%clk 0:36:45]} 58... Qd7 {[%clk 0:51:19]} 59. Rb1 {[%clk 0:37:17]}
59... Qe7 {[%clk 0:43:10]} 60. Ra1 {[%clk 0:36:45]} 60... Qd7 {[%clk 0:45:08]}
61. Rb1 {[%clk 0:37:17]} 61... Qe7 {[%clk 0:43:10]} 62. Ra1 {[%clk 0:36:45]}
62... Qd7 {[%clk 0:45:08]} 63. Rb1 {[%clk 0:37:17]} 63... Qe7 {[%clk 0:43:10]}
64. Ra1 {[%clk 0:36:45]} 64... Qd7 65. Nb6 {[%clk 0:29:01]} 65... Qb5+ {[%clk
0:39:49]} 66. Qc4 {[%clk 0:28:47]} 66... Qxb6 {[%clk 0:37:37]} 67. Qc2 {[%clk
0:29:01]} 67... Qb5+ {[%clk 0:39:49]} 68. Qc4 {[%clk 0:39:54]} 68... Qb6 {[%clk
0:45:08]} 69. Qc2 {[%clk 0:29:01]} 69... Qb5+ {[%clk 0:39:49]} 70. Qc4 {[%clk
0:25:08]} 70... Qb6 {[%clk 0:45:08]} 71. Qc2 {[%clk 0:29:01]} 71... Qb5+ {[%clk
0:39:49]} 72. Qc4 {[%clk 0:25:08]} 72... Qb6 {[%clk 0:45:08]} 73. Qc2 {[%clk
0:29:01]} 73... Qb5+ {[%clk 0:39:49]} 74. Qc4 {[%clk 0:25:08]} 74... Qb6 75. Qc2
{[%clk 0:37:17]} 75... Qb5+ {[%clk 0:39:49]} 76. Qc4 {[%clk 0:25:08]} 76... Qb6
77. Qc2 {[%clk 0:20:14]} 77... Qb5+ {[%clk 0:39:49]} 78. Qc4 {[%clk 0:25:08]}
78... Qb6 79. Qc2 Qb2 {[%clk 0:35:23]} 80. Rg1+ {[%clk 0:20:04]} 0-1

[Variant "Standard"]
[Site "Europe Echecs"]

[Event "Championnat du monde jeunes U10F"]
[Date "2024.11.16"]
[White "Trzcinska, Weronika"]
[Black "Abibulla, Inzhu"]
[WhiteElo "1653"]
[BlackElo "1499"]
[Round "2.18"]
[Result "1/2-1/2"]
[TimeControl "5400+30"]

1. e4 d6 {[%clk 1:30:39]} 2. Nf3 {[%clk 1:31:13]} 2... e5 {[%clk 1:30:47]} 3.
Bc4 {[%clk 1:31:22]} 3... Bg4 {[%clk 1:30:31]} 4. h3 {[%clk 1:31:39]} 4... Bh5
{[%clk 1:30:29]} 5. Nc3 {[%clk 1:31:43]} 5... Bg4 {[%clk 1:30:31]} 6. Nb1 {[%clk
1:31:39]} 6... Bh5 {[%clk 1:30:29]} 7. Nc3 Nf6 {[%clk 1:30:23]} 8. Be2 {[%clk
1:31:51]} 8... Nc6 {[%clk 1:29:49]} 9. d3 {[%clk 1:31:51]} 9... h6 {[%clk
1:29:23]} 10. Be3 {[%clk 1:28:54]} 10... Be7 {[%clk 1:28:58]} 11. O-O {[%clk
1:27:00]} 11... O-O 12. Nd2 {[%clk 1:22:34]} 12... Bxe2 {[%clk 1:27:35]} 13.
Qxe2 d5 {[%clk 1:27:25]} 14. exd5 {[%clk 1:19:32]} 14... Nxd5 {[%clk 1:17:21]}
15. Nxd5 {[%clk 1:19:46]} 15... Qxd5 {[%clk 1:17:43]} 16. Nb3 {[%clk 1:25:40]}
16... Qd8 {[%clk 1:17:21]} 17. Nd2 Qd5 {[%clk 1:17:43]} 18. Nb3 {[%clk 1:25:40]}
18... Qd8 {[%clk 1:17:21]} 19. Nd2 Qd5 {[%clk 1:17:43]} 20. Nb3 {[%clk 1:25:40]}
20... Qd8 {[%clk 1:17:21]} 21. Nd2 Qd5 {[%clk 1:17:43]} 22. Nb3 {[%clk 1:25:40]}
22... Qd8 {[%clk 1:17:21]} 23. Nd2 Qd5 {[%clk 1:17:43]} 24. Nb3 {[%clk 1:18:39]}
24... Qd8 {[%clk 1:17:21]} 25. Nd2 Qd5 {[%clk 1:17:43]} 26. Nb3 {[%clk 1:18:39]}
26... Rad8 {[%clk 1:08:52]} 27. f3 {[%clk 1:06:57]} 27... f5 {[%clk 1:02:38]}
28. Bf2 {[%clk 1:06:57]} 28... f4 {[%clk 1:02:17]} 29. Rfe1 Bb4 {[%clk 0:54:28]}
30. Red1 {[%clk 1:03:43]} 30... Be7 {[%clk 1:02:17]} 31. Re1 Bb4 {[%clk
0:54:28]} 32. Red1 Be7 {[%clk 0:52:05]} 33. Re1 Bb4 {[%clk 0:54:28]} 34. Red1
Be7 {[%clk 0:52:05]} 35. a3 {[%clk 1:03:40]} 35... a5 {[%clk 0:49:38]} 36. Qe4
{[%clk 0:57:58]} 36... Qxe4 {[%clk 0:48:04]} 37. dxe4 {[%clk 0:57:55]} 37... b6
{[%clk 0:48:01]} 38. c3 {[%clk 0:56:38]} 38... Kh7 {[%clk 0:46:21]} 39. Nd2
{[%clk 0:54:34]} 39... Rd7 {[%clk 0:45:10]} 40. Nb3 {[%clk 0:56:38]} 40... Rdd8
{[%clk 0:46:21]} 41. Nd2 {[%clk 0:54:34]} 41... Rd7 {[%clk 0:45:10]} 42. Kf1
{[%clk 0:51:28]} 42... Rfd8 {[%clk 0:45:27]} 43. Ke2 {[%clk 0:51:02]} 43... Bb4
{[%clk 0:54:28]} 44. Kf1 {[%clk 0:51:28]} 44... Be7 {[%clk 0:45:27]} 45. Ke2
{[%clk 0:51:02]} 45... Bb4 {[%clk 0:54:28]} 46. Kf1 {[%clk 0:51:28]} 46... Be7
{[%clk 0:45:27]} 47. Ke2 {[%clk 0:51:02]} 47... Rf8 {[%clk 0:45:10]} 48. Kf1
{[%clk 0:51:28]} 48... Rfd8 {[%clk 0:45:27]} 49. Ke2 {[%clk 0:51:02]} 49... Rf8
{[%clk 0:45:10]} 50. Kf1 {[%clk 0:51:28]} 50... Rfd8 {[%clk 0:45:27]} 51. Ke2
{[%clk 0:51:02]} 51... a4 {[%clk 0:41:47]} 52. Nf1 {[%clk 0:48:25]} 52... Na5
{[%clk 0:40:38]} 53. Nd2 {[%clk 0:51:02]} 53... Nc6 {[%clk 0:41:47]} 54. Nf1
{[%clk 0:48:25]} 54... Na5 {[%clk 0:40:38]} 55. Rxd7 {[%clk 0:48:02]} 55... Rxd7
{[%clk 0:40:59]} 56. Rd1 {[%clk 0:48:07]} 56... Rxd1 {[%clk 0:41:03]} 57. Kxd1
{[%clk 0:48:30]} 57... Nc4 {[%clk 0:41:21]} 58. Kc2 {[%clk 0:57:55]} 58... Na5
{[%clk 0:40:59]} 59. Kd1 {[%clk 0:48:30]} 59... Nc4 {[%clk 0:41:21]} 60. Kc2
{[%clk 0:57:55]} 60... Na5 {[%clk 0:40:59]} 61. Kd1 {[%clk 0:48:30]} 61... Nc4
{[%clk 0:41:21]} 62. Kc2 {[%clk 0:48:29]} 62... Kg6 {[%clk 0:40:34]} 63. Nd2
{[%clk 0:48:32]} 63... Nxd2 {[%clk 0:39:28]} 64. Kxd2 Kf6 {[%clk 0:39:21]} 65.
Kd3 {[%clk 0:48:47]} 65... b5 {[%clk 0:38:29]} 66. Be1 {[%clk 0:47:04]} 66...
Ke6 {[%clk 0:36:46]} 67. c4 {[%clk 0:47:18]} 67... c6 {[%clk 0:37:10]} 68. cxb5
{[%clk 0:47:13]} 68... cxb5 {[%clk 0:37:35]} 69. Ba5 {[%clk 0:47:34]} 69... Kd7
{[%clk 0:36:29]} 70. Be1 {[%clk 0:47:18]} 70... Ke6 {[%clk 0:37:35]} 71. Ba5
{[%clk 0:47:34]} 71... Kd7 {[%clk 0:36:29]} 72. Bc3 {[%clk 0:46:18]} 72... Ke6
{[%clk 0:37:10]} 73. Ba5 {[%clk 0:47:34]} 73... Kd7 {[%clk 0:36:29]} 74. Bc3
{[%clk 0:46:18]} 74... Bd6 {[%clk 0:36:07]} 75. Ba5 {[%clk 0:46:12]} 75... g6
{[%clk 0:33:03]} 76. Kc3 {[%clk 0:44:51]} 76... h5 {[%clk 0:32:49]} 77. Bb6
{[%clk 0:44:48]} 77... Kc6 {[%clk 0:32:31]} 78. Ba5 {[%clk 0:44:18]} 78... Bc5
{[%clk 0:32:42]} 79. Bb4 {[%clk 0:43:57]} 79... Bd6 {[%clk 0:32:31]} 80. Ba5
{[%clk 0:44:18]} 80... Bc5 {[%clk 0:32:42]} 81. Bb4 Bxb4+ {[%clk 0:31:39]} 82.
Kxb4 {[%clk 0:44:15]} 82... g5 {[%clk 0:31:59]} 83. Kc3 {[%clk 0:44:08]} 83...
Kc5 {[%clk 0:31:53]} 84. Kd3 {[%clk 0:44:29]} 84... b4 {[%clk 0:31:49]} 85.
axb4+ {[%clk 0:44:19]} 85... Kxb4 {[%clk 0:32:08]} 86. Kc2 {[%clk 0:44:32]}
86... Kc4 {[%clk 0:32:28]} 87. Kd2 {[%clk 0:44:40]} 87... Kc5 {[%clk 0:31:49]}
88. Kd3 Kb4 {[%clk 0:32:08]} 89. Kc2 {[%clk 0:44:32]} 89... Kc4 {[%clk 0:32:28]}
90. Kd2 {[%clk 0:44:40]} 90... Kb3 {[%clk 0:32:09]} 91. Kc1 {[%clk 0:44:59]}
91... Kb4 {[%clk 0:32:08]} 92. Kc2 {[%clk 0:44:32]} 92... Kc4 {[%clk 0:32:28]}
93. Kd2 {[%clk 0:44:40]} 93... Kb3 {[%clk 0:32:09]} 94. Kc1 {[%clk 0:44:59]}
94... Kb4 {[%clk 0:28:35]} 95. Kb1 {[%clk 0:44:56]} 95... Kc5 {[%clk 0:31:49]}
96. Kc2 {[%clk 0:44:32]} 96... Kc4 {[%clk 0:32:28]} 97. Kd2 {[%clk 0:44:40]}
97... Kb3 {[%clk 0:32:09]} 98. Kc1 {[%clk 0:44:59]} 98... Kb4 {[%clk 0:28:35]}
99. Kb1 {[%clk 0:44:56]} 99... Kb3 {[%clk 0:28:04]} 100. Kc1 {[%clk 0:44:58]}
100... Kb4 {[%clk 0:32:08]} 101. Kc2 {[%clk 0:44:32]} 101... Kc4 {[%clk
0:32:28]} 102. Kd2 {[%clk 0:44:40]} 102... Kb3 {[%clk 0:32:09]} 103. Kc1 {[%clk
0:44:59]} 103... Kb4 {[%clk 0:28:35]} 104. Kb1 {[%clk 0:44:56]} 104... Kb3
{[%clk 0:28:04]} 105. Kc1 {[%clk 0:44:58]} 105... a3 {[%clk 0:26:47]} 106. bxa3
{[%clk 0:45:18]} 106... Kxa3 {[%clk 0:27:15]} 107. Kc2 {[%clk 0:45:31]} 107...
Kb4 {[%clk 0:27:35]} 108. Kb2 {[%clk 0:45:50]} 108... Kc4 {[%clk 0:28:00]} 109.
Kc2 {[%clk 0:46:15]} 109... Kd4 {[%clk 0:28:25]} 110. Kc1 {[%clk 0:45:18]}
110... Kc4 {[%clk 0:28:00]} 111. Kc2 {[%clk 0:46:15]} 111... Kd4 {[%clk
0:28:25]} 112. Kd2 {[%clk 0:46:34]} 112... Kc4 {[%clk 0:28:00]} 113. Kc2 {[%clk
0:46:15]} 113... Kd4 {[%clk 0:28:25]} 114. Kd2 {[%clk 0:46:34]} 114... Kc4
{[%clk 0:27:41]} 115. Kc2 {[%clk 0:46:57]} 115... Kd4 {[%clk 0:26:31]} 116. Kd2
{[%clk 0:47:21]} 116... h4 {[%clk 0:26:57]} 117. Ke2 {[%clk 0:47:47]} 117... Kc3
{[%clk 0:27:04]} 118. Ke1 {[%clk 0:48:00]} 118... Kd3 {[%clk 0:27:28]} 119. Kd1
{[%clk 0:48:24]} 119... Kd4 {[%clk 0:26:57]} 120. Ke2 {[%clk 0:47:47]} 120...
Kc3 {[%clk 0:27:04]} 121. Ke1 {[%clk 0:48:00]} 121... Kd3 {[%clk 0:27:28]} 122.
Kd1 {[%clk 0:48:24]} 122... Kd4 {[%clk 0:26:57]} 123. Ke2 {[%clk 0:47:47]}
123... Kc3 {[%clk 0:27:04]} 124. Ke1 {[%clk 0:48:00]} 124... Kd3 {[%clk
0:27:28]} 125. Kd1 {[%clk 0:48:24]} 125... Kc3 {[%clk 0:27:13]} 126. Kc1 {[%clk
0:48:46]} 126... Kd3 {[%clk 0:27:35]} 127. Kd1 {[%clk 0:49:09]} 127... Ke3
{[%clk 0:27:56]} 128. Ke1 {[%clk 0:49:34]} 128... Kd3 {[%clk 0:25:14]} 129. Kd1
{[%clk 0:49:53]} 129... Kc3 {[%clk 0:25:39]} 130. Kc1 {[%clk 0:50:14]} 130...
Kd3 {[%clk 0:26:05]} 131. Kd1 {[%clk 0:50:38]} 131... Ke3 {[%clk 0:26:30]} 132.
Ke1 {[%clk 0:51:03]} 132... Kd3 {[%clk 0:26:52]} 133. Kd1 {[%clk 0:51:25]}
133... Ke3 {[%clk 0:27:19]} 134. Kc1 {[%clk 0:45:18]} 134... Kd4 {[%clk
0:26:57]} 135. Kd2 {[%clk 0:47:47]} 1/2-1/2

[Variant "Standard"]
[Site "Europe Echecs"]